fUST/lending_fUST_20250119
["ID","MTS","AMOUNT","RATE_DAILY","PERIOD"]
[349491315,1737216644332,-500.0,0.00022191,3]
[349491317,1737216644342,-168.11,0.00022191,3]
[349491319,1737216644351,-1562.44,0.00022191,3]
[349491321,1737216644362,-185.4,0.00022191,3]
[349491323,1737216644372,-500.0,0.00022191,3]
[349491325,1737216644381,-500.0,0.00022191,3]
[349491327,1737216644391,-193.95,0.00022191,3]
[349491329,1737216644400,-500.0,0.00022191,3]
[349491331,1737216644410,-1096.79,0.00022191,3]
[349491333,1737216644423,-278.83542316,0.00022191,3]
[349491335,1737216644433,-582.46,0.00022191,3]
[349491337,1737216644443,-500.0,0.00022191,3]
[349491338,1737216644453,-211.69428764,0.00022245,3]
[349491339,1737216644463,-600.0,0.00022306,2]
[349491340,1737216644473,-211.69428764,0.00022314,3]
[349491341,1737216644483,-714.97,0.00022328,3]
[349491342,1737216644492,-4289.43,0.00022328,3]
[349491343,1737216644502,-1610.77,0.00022328,3]
[349491344,1737216644512,-500.0,0.00022328,3]
[349491345,1737216644524,-500.0,0.00022328,3]
[349491346,1737216644533,-1562.44,0.00022328,3]
[349491347,1737216644544,-500.0,0.00022328,3]
[349491348,1737216644553,-500.0,0.00022328,3]
[349491349,1737216644563,-1096.79,0.00022328,3]
[349491351,1737216644573,-582.46,0.00022328,3]
[349491352,1737216644582,-500.0,0.00022328,3]
[349491355,1737216644592,-211.69428764,0.00022383,3]
[349491357,1737216644603,-211.69428764,0.00022452,3]
[349491359,1737216644612,-714.97,0.00022465,3]
[349491360,1737216644622,-4289.43,0.00022465,3]
[349491363,1737216644632,-1610.77,0.00022465,3]
[349491365,1737216644642,-500.0,0.00022465,3]
[349491366,1737216644652,-500.0,0.00022465,3]
[349491369,1737216644662,-1562.44,0.00022465,3]
[349491371,1737216644672,-317.70224119,0.00022465,3]
[349491959,1737216667082,236.5938144,0.00019994,2]
[349491960,1737216689362,500.0,0.0002295,120]
[349491961,1737216690127,500.0,0.0002295,120]
[349491963,1737216691050,500.0,0.0002295,120]
[349491964,1737216691316,160.0,0.00024948,120]
[349491965,1737216751351,160.0,0.00024216,120]
[349491966,1737216805589,150.09,0.000238,120]
[349491968,1737216811339,160.0,0.00023758,120]
[349491969,1737216814207,2101.29367291,0.00025,120]
[349491971,1737216821761,165.40738,0.00013973,2]
[349491972,1737216821832,1000.0,0.00025,120]
[349491973,1737216822824,1000.0,0.00025,120]
[349491974,1737216823423,1000.0,0.00025,120]
[349491975,1737216823890,1000.0,0.00025,120]
[349491976,1737216824502,1000.0,0.00025,120]
[349491977,1737216825142,1000.0,0.00025,120]
[349491978,1737216827404,1000.0,0.00025,120]
[349491979,1737216871313,160.0,0.0002467,120]
[349491980,1737216931362,160.0,0.00024613,120]
[349491982,1737216991302,160.0,0.00023768,120]
[349491984,1737217051587,160.0,0.00023045,120]
[349491986,1737217111898,160.0,0.00024673,120]
[349491987,1737217171890,160.0,0.00024858,120]
[349491988,1737217231306,160.0,0.00024793,120]
[349491990,1737217291835,160.0,0.00024028,120]
[349491991,1737217351843,160.0,0.00023365,120]
[349491992,1737217411079,160.0,0.0002458,120]
[349491998,1737217531527,160.0,0.00024993,120]
[349491999,1737217559579,1000.0,0.0002,2]
[349492002,1737217591096,160.0,0.00022784,120]
[349492003,1737217606617,1602.65,0.00025,120]
[349492006,1737217652654,160.0,0.00023055,120]
[349492007,1737217657301,434.9537,0.00025,120]
[349492016,1737217689718,165.40738,0.00013973,2]
[349492017,1737217692712,390.61656435,0.000248,120]
[349492018,1737217700836,1096.01800381,0.0002,120]
[349492019,1737217704208,188.0,0.0002,120]
[349492020,1737217709978,181.34238459,0.00025,120]
[349492021,1737217710038,305.20501384,7e-05,120]
[349492022,1737217710132,547.06317151,0.00025,120]
[349492024,1737217711377,160.0,0.00022832,120]
[349492025,1737217718480,2201.96859507,0.00025,120]
[349492026,1737217719271,1267.54961387,0.0002,120]
[349492027,1737217720070,2613.61694393,0.0002,2]
[349492028,1737217721634,1610.5244925,0.00025,120]
[349492029,1737217721793,581.04047235,0.00025,120]
[349492030,1737217723101,1750.38834426,0.00019,3]
[349492031,1737217724262,985.98843763,0.0002202,120]
[349492045,1737217728147,868.07212301,0.00025,120]
[349492055,1737217771395,160.0,0.00022914,120]
[349492093,1737217832463,-623.490502,0.00020609,2]
[349492094,1737217832473,-464.96799901,0.00020817,2]
[349492095,1737217832484,-311.745251,0.00020917,2]
[349492096,1737217832496,-848.34944799,0.00021084,2]
[349492097,1737217832512,-3238.23299811,0.00021084,2]
[349492098,1737217832522,-300.0,0.0002153,2]
[349492099,1737217832532,-8356.52168465,0.00021531,2]
[349492100,1737217832549,-2377.10357769,0.00021531,2]
[349492101,1737217832559,-4175.04818308,0.00021795,2]
[349492102,1737217832571,-5630.48153277,0.00021795,2]
[349492151,1737217838347,-928.09554649,0.00021795,2]
[349492152,1737217838356,-175.44118834,0.00021817,2]
[349492153,1737217838366,-151.96,0.00021917,2]
[349492154,1737217838375,-176.16287711,0.00021917,2]
[349492155,1737217838385,-599.76,0.00021917,2]
[349492156,1737217838394,-425.20245671,0.00021917,3]
[349492157,1737217838404,-500.0,0.00021917,3]
[349492158,1737217838413,-500.0,0.00021917,3]
[349492159,1737217838423,-529.01,0.00021917,3]
[349492160,1737217838433,-500.0,0.00021917,3]
[349492161,1737217838443,-384.34194276,0.00021917,3]
[349492162,1737217838452,-500.0,0.00021917,3]
[349492163,1737217838463,-500.0,0.00021917,2]
[349492164,1737217838474,-500.0,0.00021917,3]
[349492165,1737217838483,-500.0,0.00021917,3]
[349492166,1737217838493,-500.0,0.00021917,3]
[349492167,1737217838502,-500.0,0.00021917,3]
[349492168,1737217838513,-500.0,0.00021917,3]
[349492169,1737217838529,-500.0,0.00021917,3]
[349492170,1737217838539,-500.0,0.00021917,3]
[349492171,1737217838549,-465.21,0.00021917,3]
[349492172,1737217838558,-580.44,0.00021917,3]
[349492173,1737217838568,-500.0,0.00021917,3]
[349492174,1737217838578,-500.0,0.00021917,3]
[349492175,1737217838587,-500.0,0.00021917,3]
[349492176,1737217838597,-1257.76,0.00021917,3]
[349492177,1737217838607,-569.76,0.00021917,3]
[349492178,1737217838616,-500.0,0.00021917,3]
[349492179,1737217838626,-500.0,0.00021917,3]
[349492180,1737217838636,-500.0,0.00021917,3]
[349492181,1737217838646,-500.0,0.00021917,3]
[349492182,1737217838658,-500.0,0.00021917,3]
[349492183,1737217838669,-500.0,0.00021917,3]
[349492184,1737217838680,-500.0,0.00021917,3]
[349492185,1737217838692,-500.0,0.00021917,3]
[349492186,1737217838703,-500.0,0.00021917,3]
[349492187,1737217838713,-500.0,0.00021917,3]
[349492188,1737217838724,-975.62,0.00021917,3]
[349492189,1737217838741,-500.0,0.00021917,3]
[349492190,1737217838752,-352.49430545,0.00021917,3]
[349492191,1737217838761,-500.0,0.00021917,3]
[349492192,1737217838771,-503.79885285,0.00021917,3]
[349492193,1737217838781,-352.26,0.00021917,3]
[349492194,1737217838790,-265.77,0.00021917,3]
[349492195,1737217838799,-500.0,0.00021917,3]
[349492196,1737217838809,-784.89,0.00021917,3]
[349492197,1737217838818,-500.0,0.00021917,3]
[349492198,1737217838828,-500.0,0.00021917,3]
[349492199,1737217838838,-500.0,0.00021917,3]
[349492200,1737217838847,-500.0,0.00021917,3]
[349492201,1737217838857,-500.0,0.00021917,3]
[349492202,1737217838867,-500.0,0.00021917,3]
[349492203,1737217838878,-500.0,0.00021917,3]
[349492204,1737217838888,-500.0,0.00021917,3]
[349492205,1737217838897,-500.0,0.00021917,3]
[349492206,1737217838911,-170.70777332,0.00021917,3]
[349492207,1737217838921,-500.0,0.00021917,3]
[349492208,1737217838930,-500.0,0.00021917,3]
[349492209,1737217838940,-630.65,0.00021917,3]
[349492210,1737217838950,-3996.01,0.00021917,3]
[349492211,1737217838959,-789.25,0.00021917,3]
[349492212,1737217838969,-500.0,0.00021917,3]
[349492213,1737217838979,-500.0,0.00021917,2]
[349492214,1737217838989,-500.0,0.00021917,3]
[349492215,1737217838999,-500.0,0.00021917,3]
[349492216,1737217839009,-292.11,0.00021917,3]
[349492217,1737217839019,-1535.31,0.00021917,3]
[349492218,1737217839029,-500.0,0.00021917,3]
[349492219,1737217839038,-500.0,0.00022054,3]
[349492220,1737217839048,-466.68,0.00022054,3]
[349492221,1737217839057,-466.32280316,0.00022054,3]
[349492222,1737217839068,-184.53,0.00022054,3]
[349492223,1737217839078,-500.0,0.00022054,3]
[349492224,1737217839088,-500.0,0.00022054,3]
[349492225,1737217839098,-246.72947002,0.00022054,3]
[349492226,1737217839112,-253.27052998,0.00022054,3]
[349492227,1737217839122,-1257.76,0.00022054,3]
[349492228,1737217839133,-500.0,0.00022054,3]
[349492229,1737217839146,-500.0,0.00022054,3]
[349492230,1737217839161,-500.0,0.00022054,3]
[349492231,1737217839171,-500.0,0.00022054,3]
[349492232,1737217839180,-975.62,0.00022054,3]
[349492233,1737217839190,-565.73,0.00022054,3]
[349492234,1737217839202,-500.0,0.00022054,3]
[349492235,1737217839214,-19.57465755,0.00022054,3]
[349492236,1737217839230,-301.34287484,0.00022054,3]
[349492237,1737217839245,-463.97246761,0.00022054,3]
[349492238,1737217839257,-500.0,0.00022054,3]
[349492239,1737217839269,-500.0,0.00022054,3]
[349492240,1737217839281,-500.0,0.00022054,3]
[349492241,1737217839291,-500.0,0.00022054,3]
[349492242,1737217839302,-630.65,0.00022054,3]
[349492243,1737217839313,-3610.51591037,0.00022054,3]
[349492244,1737217839328,-385.49408963,0.00022054,3]
[349492245,1737217839338,-789.25,0.00022054,3]
[349492246,1737217839349,-358.31914799,0.00022054,2]
[349492247,1737217839363,-140.68085201,0.00022054,2]
[349492248,1737217839376,-500.0,0.00022054,3]
[349492249,1737217839387,-1535.31,0.00022054,3]
[349492250,1737217839399,-500.0,0.00022054,3]
[349492251,1737217839415,-441.5251945,0.00022055,2]
[349492252,1737217839426,-175.44118833,0.0002211,2]
[349492253,1737217839438,-254.4859338,0.0002212,2]
[349492254,1737217839452,-509.765,0.0002212,2]
[349492268,1737217840394,-6700.0,0.0002212,2]
[349492269,1737217840411,-3269.37432855,0.0002212,2]
[349492270,1737217840424,-1050.94,0.00022181,3]
[349492271,1737217840436,-525.47,0.00022181,3]
[349492272,1737217840447,-262.74,0.00022181,3]
[349492273,1737217840457,-500.0,0.00022191,3]
[349492274,1737217840469,-500.0,0.00022191,3]
[349492275,1737217840480,-500.0,0.00022191,3]
[349492276,1737217840491,-1257.76,0.00022191,3]
[349492277,1737217840503,-500.0,0.00022191,3]
[349492278,1737217840514,-500.0,0.00022191,3]
[349492279,1737217840526,-383.04775881,0.00022191,3]
[349492280,1737217840538,-975.62,0.00022191,3]
[349492281,1737217840549,-500.0,0.00022191,3]
[349492282,1737217840561,-784.89,0.00022191,3]
[349492283,1737217840573,-500.0,0.00022191,3]
[349492284,1737217840584,-630.65,0.00022191,3]
[349492285,1737217840596,-3996.01,0.00022191,3]
[349492286,1737217840606,-789.25,0.00022191,3]
[349492287,1737217840616,-480.33,0.00022191,3]
[349492288,1737217840626,-1535.31,0.00022191,3]
[349492289,1737217840636,-500.0,0.00022191,3]
[349492290,1737217840648,-249.0,0.00022328,3]
[349492291,1737217840660,-500.0,0.00022328,3]
[349492292,1737217840671,-1257.76,0.00022328,3]
[349492293,1737217840681,-500.0,0.00022328,3]
[349492294,1737217840692,-249.71,0.00022328,3]
[349492295,1737217840704,-975.62,0.00022328,3]
[349492296,1737217840715,-500.0,0.00022328,3]
[349492297,1737217840727,-784.89,0.00022328,3]
[349492298,1737217840740,-500.0,0.00022328,3]
[349492299,1737217840751,-630.65,0.00022328,3]
[349492300,1737217840762,-3996.01,0.00022328,3]
[349492301,1737217840774,-789.25,0.00022328,3]
[349492302,1737217840786,-1535.31,0.00022328,3]
[349492303,1737217840798,-500.0,0.00022328,3]
[349492304,1737217840809,-175.44118833,0.00022403,2]
[349492305,1737217840821,-788.22,0.00022455,3]
[349492306,1737217840833,-500.0,0.00022465,3]
[349492307,1737217840845,-1257.76,0.00022465,3]
[349492308,1737217840856,-500.0,0.00022465,3]
[349492309,1737217840868,-975.62,0.00022465,3]
[349492310,1737217840878,-500.0,0.00022465,3]
[349492311,1737217840889,-784.89,0.00022465,3]
[349492312,1737217840899,-500.0,0.00022465,3]
[349492313,1737217840911,-630.65,0.00022465,3]
[349492314,1737217840920,-3996.01,0.00022465,3]
[349492315,1737217840932,-789.25,0.00022465,3]
[349492316,1737217840942,-1535.31,0.00022465,3]
[349492317,1737217840955,-500.0,0.00022465,3]
[349492318,1737217840968,-2023.0,0.00022592,4]
[349492319,1737217840981,-500.0,0.00022602,3]
[349492320,1737217840992,-1257.76,0.00022602,3]
[349492321,1737217841004,-500.0,0.00022602,3]
[349492322,1737217841016,-975.62,0.00022602,3]
[349492323,1737217841025,-392.02732431,0.00022602,3]
[349492341,1737217843234,-107.97267569,0.00022602,3]
[349492342,1737217843245,-784.89,0.00022602,3]
[349492343,1737217843255,-500.0,0.00022602,3]
[349492344,1737217843265,-630.65,0.00022602,3]
[349492345,1737217843276,-517.88732446,0.00022602,3]
[349492346,1737217843347,-2249.71,0.00022602,3]
[349492363,1737217891958,160.0,0.00022842,120]
[349492365,1737217951990,160.0,0.00024409,120]
[349492367,1737218011467,160.0,0.00024035,120]
[349492368,1737218028570,1784.37027889,0.0002,2]
[349492369,1737218037825,1784.37027889,0.0002,2]
[349492370,1737218131340,160.0,0.00024034,120]
[349492371,1737218240800,214.736069,0.0002411,120]
[349492372,1737218251541,160.0,0.00023751,120]
[349492373,1737218310748,160.0,0.00024147,120]
[349492375,1737218370758,160.0,0.0002463,120]
[349492376,1737218431452,160.0,0.00024343,120]
[349492377,1737218490755,160.0,0.00022987,120]
[349492378,1737218577919,165.224067,0.00013973,2]
[349492379,1737218610762,160.0,0.00024679,120]
[349492380,1737218645898,3125.0,0.00025,120]
[349492381,1737218730757,160.0,0.00024086,120]
[349492382,1737218790888,160.0,0.000249,120]
[349492383,1737218818454,273.34891462,0.00013,2]
[349492384,1737218825268,273.34891462,0.00014,2]
[349492385,1737218831504,273.34891462,0.00015,2]
[349492386,1737218838052,273.34891462,0.00016,2]
[349492387,1737218850772,160.0,0.00024065,120]
[349492388,1737218857999,273.34891462,0.00017,2]
[349492389,1737218869817,273.34891462,0.00018,2]
[349492390,1737218875138,273.34891462,0.0002,2]
[349492391,1737218910777,160.0,0.00022845,120]
[349492392,1737218970749,160.0,0.00024336,120]
[349492420,1737219036646,-500.0,0.00020114,2]
[349492421,1737219036655,-171.611024,0.00020695,2]
[349492422,1737219036665,-277.357425,0.00020822,2]
[349492424,1737219036675,-177.204197,0.00020847,2]
[349492425,1737219036685,-500.0,0.00021909,7]
[349492426,1737219036694,-300.0,0.00021916,2]
[349492427,1737219036703,-151.96,0.00021917,2]
[349492428,1737219036712,-500.0,0.00021917,3]
[349492429,1737219036722,-501.7710024,0.00021917,3]
[349492430,1737219036732,-500.0,0.00021917,3]
[349492431,1737219036741,-341.88223984,0.00021917,3]
[349492432,1737219036751,-4.5070732,0.00021917,3]
[349492433,1737219036768,-495.4929268,0.00021917,3]
[349492434,1737219036777,-500.0,0.00021917,2]
[349492435,1737219036787,-225.90735442,0.00021917,3]
[349492436,1737219036796,-500.0,0.00021917,3]
[349492437,1737219036807,-501.31607979,0.00021917,3]
[349492438,1737219036817,-500.0,0.00021917,3]
[349492439,1737219036827,-501.08117209,0.00021917,3]
[349492440,1737219036836,-332.7214307,0.00021917,3]
[349492441,1737219036846,-290.94183212,0.00021917,3]
[349492442,1737219036855,-500.0,0.00021917,3]
[349492443,1737219036865,-500.0,0.00021917,3]
[349492444,1737219036874,-494.77356503,0.00021917,3]
[349492445,1737219036884,-464.34633077,0.00021917,3]
[349492446,1737219036893,-500.0,0.00021917,3]
[349492447,1737219036902,-376.29831683,0.00021917,3]
[349492448,1737219036911,-500.0,0.00021917,3]
[349492449,1737219036921,-943.32,0.00021917,3]
[349492450,1737219036930,-500.0,0.00021917,3]
[349492451,1737219036939,-500.0,0.00021917,3]
[349492452,1737219036949,-500.0,0.00021917,3]
[349492453,1737219036959,-595.50834407,0.00021917,3]
[349492454,1737219036968,-731.72,0.00021917,3]
[349492455,1737219036978,-500.0,0.00021917,3]
[349492456,1737219036989,-500.0,0.00021917,3]
[349492457,1737219037002,-467.97907466,0.00021917,3]
[349492458,1737219037018,-32.02092534,0.00021917,3]
[349492459,1737219037030,-304.62730444,0.00021917,3]
[349492504,1737219038632,-195.37269556,0.00021917,3]
[349492506,1737219038643,-628.54,0.00021917,3]
[349492508,1737219038653,-500.0,0.00021917,3]
[349492510,1737219038664,-500.0,0.00021917,3]
[349492512,1737219038677,-3148.59,0.00021917,3]
[349492514,1737219038688,-500.0,0.00021917,3]
[349492515,1737219038699,-678.05,0.00021917,3]
[349492516,1737219038709,-1215.46,0.00021917,3]
[349492517,1737219038720,-500.0,0.00021917,3]
[349492518,1737219038731,-500.0,0.00021917,3]
[349492519,1737219038742,-500.0,0.00021917,3]
[349492520,1737219038754,-500.0,0.00021917,3]
[349492521,1737219038765,-500.0,0.00021917,3]
[349492522,1737219038776,-635.98782014,0.00021917,3]
[349492523,1737219038787,-167.77559239,0.00021954,2]
[349492524,1737219038799,-500.0,0.00022054,2]
[349492525,1737219038814,-500.0,0.00022054,3]
[349492526,1737219038826,-943.32,0.00022054,3]
[349492527,1737219038836,-564.31396184,0.00022054,3]
[349492528,1737219038847,-731.72,0.00022054,3]
[349492529,1737219038858,-500.0,0.00022054,3]
[349492530,1737219038868,-500.0,0.00022054,3]
[349492531,1737219038879,-628.54,0.00022054,3]
[349492532,1737219038890,-3148.59,0.00022054,3]
[349492533,1737219038900,-500.0,0.00022054,3]
[349492534,1737219038911,-678.05,0.00022054,3]
[349492535,1737219038922,-1215.46,0.00022054,3]
[349492536,1737219038934,-500.0,0.00022054,3]
[349492537,1737219038945,-500.0,0.00022054,3]
[349492538,1737219038956,-706.5297228,0.00022055,2]
[349492539,1737219038967,-9886.68437803,0.00022061,2]
[349492540,1737219038978,-500.0,0.00022167,3]
[349492541,1737219038988,-500.0,0.00022191,2]
[349492542,1737219038998,-500.0,0.00022191,3]
[349492543,1737219039008,-943.32,0.00022191,3]
[349492544,1737219039019,-731.72,0.00022191,3]
[349492545,1737219039030,-500.0,0.00022191,3]
[349492546,1737219039041,-500.0,0.00022191,3]
[349492547,1737219039051,-628.54,0.00022191,3]
[349492548,1737219039069,-3148.59,0.00022191,3]
[349492549,1737219039080,-500.0,0.00022191,3]
[349492550,1737219039091,-678.05,0.00022191,3]
[349492551,1737219039102,-1215.46,0.00022191,3]
[349492552,1737219039115,-500.15847683,0.00022191,3]
[349492553,1737219039125,-500.0,0.00022191,3]
[349492554,1737219039137,-167.77559235,0.00022273,2]
[349492555,1737219039149,-400.0,0.00022306,2]
[349492556,1737219039161,-292.05294811,0.00022327,3]
[349492557,1737219039172,-500.0,0.00022328,3]
[349492558,1737219039184,-943.32,0.00022328,3]
[349492559,1737219039196,-731.72,0.00022328,3]
[349492560,1737219039209,-500.0,0.00022328,3]
[349492561,1737219039221,-500.0,0.00022328,3]
[349492562,1737219039237,-628.54,0.00022328,3]
[349492563,1737219039247,-3148.59,0.00022328,3]
[349492564,1737219039258,-500.0,0.00022328,3]
[349492565,1737219039270,-678.05,0.00022328,3]
[349492566,1737219039280,-1215.46,0.00022328,3]
[349492567,1737219039291,-500.0,0.00022328,3]
[349492568,1737219039303,-451.955,0.0002238,2]
[349492569,1737219039321,-500.0,0.00022465,3]
[349492570,1737219039333,-943.32,0.00022465,3]
[349492571,1737219039347,-731.72,0.00022465,3]
[349492572,1737219039359,-500.0,0.00022465,3]
[349492573,1737219039370,-500.0,0.00022465,3]
[349492574,1737219039382,-628.54,0.00022465,3]
[349492575,1737219039392,-3148.59,0.00022465,3]
[349492576,1737219039403,-500.0,0.00022465,3]
[349492577,1737219039413,-678.05,0.00022465,3]
[349492578,1737219039424,-1215.46,0.00022465,3]
[349492579,1737219039434,-500.0,0.00022465,3]
[349492580,1737219039445,-167.77559235,0.00022593,2]
[349492581,1737219039455,-500.0,0.00022602,3]
[349492582,1737219039467,-943.32,0.00022602,3]
[349492583,1737219039479,-731.72,0.00022602,3]
[349492584,1737219039492,-500.0,0.00022602,3]
[349492585,1737219039505,-500.0,0.00022602,3]
[349492586,1737219039515,-628.54,0.00022602,3]
[349492587,1737219039526,-3148.59,0.00022602,3]
[349492588,1737219039536,-500.0,0.00022602,3]
[349492589,1737219039547,-678.05,0.00022602,3]
[349492590,1737219039563,-1215.46,0.00022602,3]
[349492591,1737219039575,-500.0,0.00022602,3]
[349492592,1737219039588,-4876.71854676,0.00022709,2]
[349492593,1737219039599,-491.33,0.00022729,3]
[349492594,1737219039610,-507.01,0.00022729,3]
[349492595,1737219039620,-253.51,0.00022729,3]
[349492596,1737219039631,-500.0,0.00022739,3]
[349492597,1737219039641,-943.32,0.00022739,3]
[349492598,1737219039651,-731.72,0.00022739,3]
[349492599,1737219039662,-500.0,0.00022739,3]
[349492600,1737219039673,-500.0,0.00022739,3]
[349492601,1737219039683,-628.54,0.00022739,3]
[349492602,1737219039693,-3148.59,0.00022739,3]
[349492603,1737219039704,-500.0,0.00022739,3]
[349492604,1737219039714,-678.05,0.00022739,3]
[349492605,1737219039725,-1215.46,0.00022739,3]
[349492606,1737219039735,-500.0,0.00022739,3]
[349492607,1737219039746,-288.93073418,0.00022876,3]
[349492608,1737219039760,-211.06926582,0.00022876,3]
[349492609,1737219039771,-943.32,0.00022876,3]
[349492610,1737219039782,-731.72,0.00022876,3]
[349492611,1737219039793,-500.0,0.00022876,3]
[349492612,1737219039803,-500.0,0.00022876,3]
[349492613,1737219039818,-628.54,0.00022876,3]
[349492614,1737219039830,-3148.59,0.00022876,3]
[349492615,1737219039841,-500.0,0.00022876,3]
[349492616,1737219039851,-678.05,0.00022876,3]
[349492617,1737219039862,-1215.46,0.00022876,3]
[349492618,1737219039873,-500.0,0.00022876,3]
[349492619,1737219039884,-151.0,0.00022879,2]
[349492620,1737219039894,-151.0,0.00022879,2]
[349492621,1737219039905,-151.0,0.00022879,2]
[349492622,1737219039916,-151.0,0.00022879,2]
[349492623,1737219039927,-151.0,0.00022879,2]
[349492624,1737219039937,-151.0,0.00022879,2]
[349492625,1737219039948,-167.17,0.00022879,2]
[349492626,1737219039958,-598.0928857,0.000229,2]
[349492627,1737219039968,-151.0,0.00022905,2]
[349492628,1737219039979,-167.77559235,0.00022912,2]
[349492631,1737219040115,-151.0,0.00022915,2]
[349492632,1737219040130,-151.0,0.00022915,2]
[349492633,1737219040141,-151.0,0.00022915,2]
[349492634,1737219040151,-151.0,0.00022915,2]
[349492635,1737219040160,-151.0,0.00022915,2]
[349492636,1737219040169,-151.0,0.00022915,2]
[349492637,1737219040179,-151.0,0.00022915,2]
[349492638,1737219040188,-151.0,0.00022915,2]
[349492640,1737219040202,-151.0,0.00022915,2]
[349492642,1737219040211,-151.0,0.00022915,2]
[349492643,1737219040220,-151.0,0.00022915,2]
[349492645,1737219040230,-151.0,0.00022915,2]
[349492647,1737219040239,-151.0,0.00022915,2]
[349492649,1737219040248,-151.0,0.00022915,2]
[349492651,1737219040258,-151.0,0.00022915,2]
[349492653,1737219040267,-151.0,0.00022915,2]
[349492655,1737219040277,-151.0,0.00022915,2]
[349492656,1737219040286,-151.0,0.00022915,2]
[349492658,1737219040295,-151.0,0.00022915,2]
[349492660,1737219040305,-151.0,0.00022915,2]
[349492662,1737219040319,-288.0,0.00022915,2]
[349492664,1737219040329,-564.33732815,0.00023,2]
[349492666,1737219040341,-122.32267185,0.00023,2]
[349492668,1737219040350,-500.0,0.00023,2]
[349492670,1737219040360,-500.0,0.00023,2]
[349492672,1737219040370,-500.0,0.00023,2]
[349492674,1737219040379,-500.0,0.00023,2]
[349492676,1737219040389,-500.0,0.00023,2]
[349492677,1737219040399,-500.0,0.00023,2]
[349492679,1737219040409,-400.34658848,0.00023,2]
[349492681,1737219040419,-2949.61662288,0.00023,7]
[349492683,1737219040428,-3481.06177025,0.00023,3]
[349492684,1737219040439,-3481.06177025,0.00023,3]
[349492686,1737219040450,-500.0,0.00023013,3]
[349492687,1737219040460,-738.51844379,0.00023013,3]
[349492688,1737219040472,-204.80155621,0.00023013,3]
[349492689,1737219040483,-295.19844379,0.00023013,3]
[349492690,1737219040498,-436.52155621,0.00023013,3]
[349492691,1737219040508,-405.16285807,0.00023013,3]
[349492692,1737219040518,-181.50618012,0.00023013,3]
[349492705,1737219044399,-395.0,0.00022719,2]
[349492706,1737219044409,-760.55,0.00022729,3]
[349492707,1737219044419,-202.39272472,0.000229,3]
[349492708,1737219044429,-202.39272472,0.00022945,3]
[349492709,1737219044438,-202.39272472,0.00022991,3]
[349492710,1737219044448,-318.49381988,0.00023013,3]
[349492711,1737219044458,-628.54,0.00023013,3]
[349492712,1737219044468,-460.81034596,0.00023013,3]
[349492713,1737219044480,-2687.77965404,0.00023013,3]
[349492714,1737219044490,-500.0,0.00023013,3]
[349492715,1737219044504,-678.05,0.00023013,3]
[349492716,1737219044513,-1215.46,0.00023013,3]
[349492717,1737219044522,-500.0,0.00023013,3]